fUST/lending_fUST_20251014
["ID","MTS","AMOUNT","RATE_DAILY","PERIOD"]
[391161125,1760403067847,-566.418217,0.00021917,7]
[391161126,1760403067857,-558.35,0.00021917,2]
[391161127,1760403067866,-500.0,0.00021917,2]
[391161128,1760403067875,-566.418217,0.00021917,7]
[391161129,1760403067884,-500.0,0.00021917,2]
[391161130,1760403067894,-566.418217,0.00021917,7]
[391161131,1760403067903,-500.0,0.00021917,2]
[391161132,1760403067912,-566.418217,0.00021917,7]
[391161133,1760403067921,-500.0,0.00021917,2]
[391161134,1760403067931,-566.418217,0.00021917,7]
[391161135,1760403067940,-283.560955,0.00021917,2]
[391161136,1760403067949,-566.418217,0.00021917,7]
[391161137,1760403067959,-566.418217,0.00021917,7]
[391161138,1760403067969,-500.0,0.00021917,2]
[391161139,1760403067979,-151.0,0.00021918,7]
[391161140,1760403067988,-151.0,0.00021918,7]
[391161141,1760403068000,-151.0,0.00021918,7]
[391161142,1760403068010,-151.0,0.00021918,7]
[391161143,1760403068019,-500.0,0.0002197,2]
[391161144,1760403068028,-151.0,0.00021971,2]
[391161145,1760403068039,-151.0,0.00021971,2]
[391161146,1760403068048,-500.0,0.00021973,2]
[391161147,1760403068058,-500.0,0.00021973,2]
[391161148,1760403068067,-500.0,0.00021973,2]
[391161149,1760403068076,-500.0,0.00021973,2]
[391161150,1760403068086,-500.0,0.00021973,2]
[391161151,1760403068096,-500.0,0.00021973,2]
[391161152,1760403068106,-442.51102124,0.00021973,2]
[391161153,1760403068115,-500.0,0.00021973,2]
[391161154,1760403068125,-500.0,0.00021973,2]
[391161155,1760403068135,-500.0,0.00021973,2]
[391161156,1760403068145,-500.0,0.00021973,2]
[391161157,1760403068155,-500.0,0.00021973,2]
[391161158,1760403068165,-500.0,0.00021973,2]
[391161159,1760403068175,-500.0,0.00021973,2]
[391161160,1760403068189,-629.36201742,0.00021973,2]
[391161161,1760403068198,-500.0,0.00021973,2]
[391161162,1760403068209,-612.94982994,0.00021973,2]
[391161163,1760403068220,-500.0,0.00021973,2]
[391161164,1760403068230,-500.0,0.00021973,2]
[391161165,1760403068241,-500.0,0.00021973,2]
[391161166,1760403068250,-500.0,0.00021973,2]
[391161167,1760403068260,-500.0,0.00021973,2]
[391161168,1760403068270,-500.0,0.00021973,2]
[391161169,1760403068280,-503.79731406,0.00021973,2]
[391161170,1760403068290,-500.0,0.00021973,2]
[391161171,1760403068299,-500.0,0.00021973,2]
[391161172,1760403068309,-500.0,0.00021973,2]
[391161173,1760403068319,-500.0,0.00021973,2]
[391161174,1760403068328,-500.0,0.00021973,2]
[391161175,1760403068337,-500.0,0.00021973,2]
[391161176,1760403068346,-583.3600727,0.00021973,2]
[391161177,1760403068356,-31584.59,0.00022,7]
[391161178,1760403068458,-251.988352,0.00022,7]
[391161179,1760403068468,-213.806913,0.00022,7]
[391161180,1760403068478,-213.806913,0.00022,7]
[391161181,1760403068488,-213.806913,0.00022,7]
[391161182,1760403068497,-213.8069066,0.00022,7]
[391161183,1760403068506,-151.0,0.00022,7]
[391161184,1760403068516,-151.0,0.00022,7]
[391161185,1760403068525,-151.0,0.00022,7]
[391161186,1760403068536,-151.0,0.00022,7]
[391161187,1760403068546,-151.0,0.00022,7]
[391161188,1760403068556,-151.0,0.00022,7]
[391161189,1760403068566,-151.0,0.00022,7]
[391161190,1760403068575,-402.34485587,0.00022,7]
[391161191,1760403068585,-500.0,0.00022025,2]
[391161192,1760403068595,-500.0,0.00022025,2]
[391161193,1760403068604,-198.0,0.00022026,2]
[391161194,1760403068614,-197.999998,0.00022026,2]
[391161195,1760403068626,-500.0,0.00022079,2]
[391161196,1760403068636,-5073.43414574,0.00022119,2]
[391161197,1760403068645,-500.0,0.00022134,2]
[391161198,1760403068655,-395.0,0.00022136,2]
[391161199,1760403068664,-229.1327814,0.00022173,2]
[391161200,1760403068674,-500.0,0.00022189,2]
[391161201,1760403068683,-500.0,0.0002219,2]
[391161202,1760403068692,-151.0,0.000222,8]
[391161203,1760403068704,-500.0,0.00022244,2]
[391161204,1760403068713,-393.08,0.00022246,2]
[391161205,1760403068724,-500.0,0.00022299,2]
[391161206,1760403068733,-312.0,0.00022335,2]
[391161207,1760403068743,-466.45038513,0.00022353,2]
[391161208,1760403068754,-300.0,0.00022354,20]
[391161209,1760403068763,-300.0,0.00022354,20]
[391161210,1760403068773,-300.0,0.00022354,20]
[391161211,1760403068782,-300.0,0.00022354,20]
[391161212,1760403068792,-300.0,0.00022354,20]
[391161213,1760403068801,-300.0,0.00022354,20]
[391161214,1760403068811,-300.0,0.00022354,20]
[391161215,1760403068820,-300.0,0.00022354,20]
[391161216,1760403068829,-300.0,0.00022354,20]
[391161217,1760403068839,-300.0,0.00022354,20]
[391161218,1760403068848,-300.0,0.00022354,20]
[391161219,1760403068858,-300.0,0.00022354,20]
[391161220,1760403068867,-300.0,0.00022354,20]
[391161221,1760403068877,-300.0,0.00022354,20]
[391161222,1760403068887,-300.0,0.00022354,20]
[391161223,1760403068898,-600.0,0.00022354,20]
[391161224,1760403068907,-151.0,0.00022354,7]
[391161225,1760403068917,-151.0,0.00022354,7]
[391161226,1760403068927,-151.0,0.00022354,7]
[391161227,1760403068937,-151.469271,0.00022354,7]
[391161228,1760403068947,-151.0,0.00022354,7]
[391161229,1760403068959,-152.866507,0.00022354,7]
[391161230,1760403068970,-151.0,0.00022354,7]
[391161231,1760403068979,-151.0,0.00022354,7]
[391161232,1760403068989,-5073.43414574,0.00022421,2]
[391161233,1760403068999,-500.0,0.00022464,2]
[391161234,1760403069009,-151.0,0.000225,7]
[391161235,1760403069018,-1013.72261937,0.00022521,2]
[391161236,1760403069027,-182.72276428,0.00022521,2]
[391161237,1760403069036,-984.86286373,0.00022521,2]
[391161238,1760403069045,-500.0,0.00022521,2]
[391161239,1760403069055,-1000.0,0.00022521,2]
[391161240,1760403069064,-1000.0,0.00022521,2]
[391161241,1760403069073,-1000.0,0.00022521,2]
[391161242,1760403069082,-1000.0,0.00022521,2]
[391161243,1760403069091,-1000.0,0.00022521,2]
[391161244,1760403069100,-500.0,0.00022521,2]
[391161245,1760403069110,-247.19281656,0.00022521,2]
[391161246,1760403069119,-1000.0,0.00022521,2]
[391161247,1760403069128,-1000.0,0.00022521,2]
[391161248,1760403069137,-1000.0,0.00022521,2]
[391161249,1760403069146,-1000.0,0.00022521,2]
[391161250,1760403069155,-1000.0,0.00022521,2]
[391161251,1760403069164,-500.0,0.00022521,2]
[391161252,1760403069174,-500.0,0.00022521,2]
[391161253,1760403069183,-500.0,0.00022521,2]
[391161254,1760403069193,-1000.0,0.00022521,2]
[391161255,1760403069202,-500.0,0.00022521,2]
[391161256,1760403069211,-1000.0,0.00022521,2]
[391161257,1760403069221,-1000.0,0.00022521,2]
[391161258,1760403069230,-507.5090354,0.00022521,2]
[391161259,1760403069239,-1000.0,0.0002272,2]
[391161260,1760403069249,-1000.0,0.0002272,2]
[391161261,1760403069258,-2030.296672,0.0002272,2]
[391161262,1760403069268,-500.0,0.0002272,2]
[391161263,1760403069277,-162.380719,0.0002272,2]
[391161264,1760403069287,-151.0,0.0002272,2]
[391161265,1760403069297,-250.0,0.0002272,2]
[391161266,1760403069306,-1000.0,0.0002272,2]
[391161267,1760403069315,-500.0,0.0002272,2]
[391161268,1760403069323,-159.76104844,0.0002272,2]
[391161269,1760403069332,-151.0,0.0002272,2]
[391161270,1760403069341,-250.0,0.0002272,2]
[391161271,1760403069350,-1000.0,0.0002272,2]
[391161272,1760403069358,-504.76891941,0.0002272,2]
[391161273,1760403069367,-151.0,0.0002272,2]
[391161274,1760403069376,-250.0,0.0002272,2]
[391161275,1760403069384,-1000.0,0.0002272,2]
[391161276,1760403069397,-2616.20294735,0.0002272,2]
[391161277,1760403069406,-151.0,0.0002272,2]
[391161278,1760403069415,-250.0,0.0002272,2]
[391161279,1760403069424,-1000.0,0.0002272,2]
[391161280,1760403069433,-250.0,0.0002272,2]
[391161281,1760403069442,-151.0,0.0002272,2]
[391161282,1760403069451,-1000.0,0.0002272,2]
[391161283,1760403069461,-250.0,0.0002272,2]
[391161284,1760403069471,-151.0,0.0002272,2]
[391161285,1760403069480,-1000.0,0.0002272,2]
[391161286,1760403069489,-18603.8837,0.0002272,2]
[391161287,1760403069498,-250.0,0.0002272,2]
[391161288,1760403069508,-151.0,0.0002272,2]
[391161289,1760403069518,-1000.0,0.0002272,2]
[391161290,1760403069528,-1000.0,0.0002272,2]
[391161291,1760403069537,-250.0,0.0002272,2]
[391161292,1760403069546,-151.0,0.0002272,2]
[391161293,1760403069555,-151.0,0.0002272,2]
[391161294,1760403069564,-1059.83545257,0.0002272,2]
[391161295,1760403069573,-1000.0,0.0002272,2]
[391161296,1760403069582,-250.0,0.0002272,2]
[391161297,1760403069591,-500.0,0.0002272,2]
[391161298,1760403069600,-151.0,0.0002272,2]
[391161299,1760403069609,-151.29537302,0.0002272,2]
[391161300,1760403069618,-1000.0,0.0002272,2]
[391161301,1760403069632,-250.0,0.0002272,2]
[391161302,1760403069641,-500.0,0.0002272,2]
[391161303,1760403069651,-151.0,0.0002272,2]
[391161304,1760403069661,-1000.0,0.0002272,2]
[391161305,1760403069670,-250.0,0.0002272,2]
[391161306,1760403069679,-500.0,0.0002272,2]
[391161307,1760403069688,-151.0,0.0002272,2]
[391161308,1760403069697,-1000.0,0.0002272,2]
[391161309,1760403069706,-250.0,0.0002272,2]
[391161310,1760403069715,-500.0,0.0002272,2]
[391161311,1760403069727,-151.0,0.0002272,2]
[391161312,1760403069736,-1000.0,0.0002272,2]
[391161313,1760403069745,-506.31908248,0.0002272,2]
[391161314,1760403069754,-250.0,0.0002272,2]
[391161315,1760403069762,-151.0,0.0002272,2]
[391161316,1760403069773,-151.0,0.0002272,2]
[391161317,1760403069783,-1000.0,0.0002272,2]
[391161318,1760403069793,-151.0,0.0002272,2]
[391161319,1760403069803,-1000.0,0.0002272,2]
[391161320,1760403069812,-151.0,0.0002272,2]
[391161321,1760403069821,-1000.0,0.0002272,2]
[391161322,1760403069830,-151.0,0.0002272,2]
[391161323,1760403069839,-1000.0,0.0002272,2]
[391161324,1760403069848,-151.0,0.0002272,2]
[391161325,1760403069857,-1000.0,0.0002272,2]
[391161326,1760403069865,-151.0,0.0002272,2]
[391161327,1760403069874,-1000.0,0.0002272,2]
[391161328,1760403069883,-1078.42669778,0.0002272,2]
[391161329,1760403069891,-250.0,0.0002272,2]
[391161330,1760403069900,-250.0,0.0002272,2]
[391161331,1760403069910,-250.0,0.0002272,2]
[391161332,1760403069919,-250.0,0.0002272,2]
[391161333,1760403069928,-250.0,0.0002272,2]
[391161334,1760403069937,-250.0,0.0002272,2]
[391161335,1760403069946,-250.0,0.0002272,2]
[391161336,1760403069955,-250.0,0.0002272,2]
[391161337,1760403069963,-250.0,0.0002272,2]
[391161338,1760403069974,-250.0,0.0002272,2]
[391161339,1760403069983,-250.0,0.0002272,2]
[391161340,1760403069993,-250.0,0.0002272,2]
[391161341,1760403070002,-250.0,0.0002272,2]
[391161342,1760403070011,-250.0,0.0002272,2]
[391161343,1760403070019,-250.0,0.0002272,2]
[391161344,1760403070028,-250.0,0.0002272,2]
[391161345,1760403070037,-500.0,0.00022732,2]
[391161346,1760403070047,-162.380719,0.00022735,2]
[391161347,1760403070057,-500.0,0.00022738,2]
[391161348,1760403070067,-255.57117925,0.00022773,2]
[391161349,1760403070076,-1422.44020861,0.00022775,2]
[391161350,1760403070085,-151.0,0.000228,7]
[391161351,1760403070094,-160.0,0.000228,2]
[391161352,1760403070103,-420.0,0.00022814,2]
[391161353,1760403070114,-1680.0,0.00022922,2]
[391161354,1760403070124,-159720.37601852,0.00023,3]
[391161355,1760403070134,-500.0,0.00023012,2]
[391161356,1760403070143,-1500.0,0.00023068,2]
[391161357,1760403070153,-1500.0,0.00023068,2]
[391161358,1760403070163,-1500.0,0.00023068,2]
[391161359,1760403070172,-1505.46787646,0.00023068,2]
[391161360,1760403070182,-1500.0,0.00023068,2]
[391161361,1760403070192,-1500.0,0.00023068,2]
[391161362,1760403070200,-1500.0,0.00023068,2]
[391161363,1760403070210,-1006.198649,0.00023068,2]
[391161364,1760403070220,-1500.0,0.00023068,2]
[391161365,1760403070230,-1500.0,0.00023068,2]
[391161366,1760403070239,-500.0,0.00023068,2]
[391161367,1760403070247,-1500.0,0.00023068,2]
[391161368,1760403070256,-1500.0,0.00023068,2]
[391161369,1760403070266,-151.0,0.000231,8]
[391161370,1760403070275,-926.0,0.00023163,2]
[391161371,1760403070285,-500.0,0.00023184,2]
[391161372,1760403070294,-524.11,0.00023213,2]
[391161373,1760403070303,-926.0,0.00023252,2]
[391161374,1760403070312,-700.0,0.00023256,2]
[391161375,1760403070324,-19292.2273969,0.00023268,2]
[391161376,1760403070333,-151.0,0.00023268,2]
[391161377,1760403070341,-926.0,0.00023272,2]
[391161378,1760403070350,-2549.36,0.00023277,3]
[391161379,1760403070359,-1274.68,0.00023277,3]
[391161380,1760403070368,-637.34,0.00023277,3]
[391161381,1760403070376,-318.68,0.00023277,3]
[391161382,1760403070386,-151.0,0.00023277,7]
[391161383,1760403070395,-151.0,0.00023277,7]
[391161384,1760403070404,-158.916977,0.00023277,7]
[391161385,1760403070413,-151.0,0.00023277,7]
[391161386,1760403070422,-151.0,0.00023277,7]
[391161387,1760403070431,-234.202693,0.00023277,7]
[391161388,1760403070440,-151.0,0.00023277,7]
[391161389,1760403070450,-151.0,0.00023277,7]
[391161390,1760403070460,-224.564696,0.00023277,7]
[391161391,1760403070469,-151.0,0.00023277,7]
[391161392,1760403070480,-151.0,0.00023277,7]
[391161393,1760403070489,-151.0,0.00023277,7]
[391161394,1760403070498,-151.0,0.00023277,7]
[391161395,1760403070507,-151.0,0.00023277,7]
[391161396,1760403070517,-500.0,0.0002328,2]
[391161397,1760403070526,-926.0,0.0002328,2]
[391161398,1760403070536,-287.006734,0.00023283,7]
[391161399,1760403070546,-151.0,0.00023283,7]
[391161400,1760403070555,-500.0,0.00023286,2]
[391161401,1760403070564,-95000.0,0.00023288,30]
[391161402,1760403070573,-298.03512572,0.00023288,30]
[391161403,1760403070582,-151.0,0.00023288,7]
[391161404,1760403070591,-151.0,0.00023288,7]
[391161405,1760403070599,-151.0,0.00023288,7]
[391161406,1760403070608,-151.0,0.00023288,2]
[391161407,1760403070710,-161.836373,0.00023288,7]
[391161408,1760403070721,-151.0,0.00023288,7]
[391161409,1760403070730,-260.0,0.00023348,2]
[391161410,1760403070739,-282.0095771,0.00023373,2]
[391161411,1760403070749,-151.0,0.000234,6]
[391161412,1760403070758,-9075.23473808,0.00023548,2]
[391161413,1760403070768,-500.0,0.0002356,2]
[391161414,1760403070776,-926.0,0.00023562,2]
[391161415,1760403070786,-151.0,0.00023616,7]
[391161416,1760403070796,-151.0,0.00023616,7]
[391161417,1760403070805,-151.0,0.00023616,7]
[391161418,1760403070814,-151.0,0.00023616,7]
[391161419,1760403070823,-151.0,0.00023616,7]
[391161420,1760403070833,-151.612106,0.00023616,7]
[391161421,1760403070842,-2000.0,0.00023616,2]
[391161422,1760403070851,-2011.58800229,0.00023616,2]
[391161423,1760403070861,-2000.0,0.00023616,2]
[391161424,1760403070871,-1872.65176127,0.00023616,2]
[391161425,1760403070879,-505.03816899,0.00023616,2]
[391161426,1760403070889,-1234.49869312,0.00023616,2]
[391161427,1760403070898,-2000.0,0.00023616,2]
[391161428,1760403070907,-2000.0,0.00023616,2]
[391161429,1760403070918,-2000.0,0.00023616,2]
[391161430,1760403070928,-2000.0,0.00023616,2]
[391161431,1760403070937,-926.0,0.00023641,2]
[391161432,1760403070946,-1000.0,0.00023655,5]
[391161433,1760403070955,-151.0,0.000237,9]
[391161434,1760403070965,-20006.03981059,0.00023816,2]
[391161435,1760403070975,-500.0,0.00023834,2]
[391161436,1760403070984,-360.0,0.00023896,2]
[391161437,1760403070993,-926.0,0.00023906,2]
[391161438,1760403071003,-834.0,0.00023959,2]
[391161439,1760403071013,-308.44797496,0.00023973,2]
[391161440,1760403071027,-926.0,0.00023984,2]
[391161441,1760403071036,-151.0,0.00024,6]
[391161442,1760403071046,-151.0,0.00024,9]
[391161443,1760403071055,-402.34485587,0.00024,30]
[391161444,1760403071064,-926.0,0.0002408,2]
[391161445,1760403071074,-162.380719,0.00024089,2]
[391161446,1760403071084,-155.0,0.00024108,2]
[391161447,1760403071093,-500.0,0.00024108,2]
[391161448,1760403071107,-834.0,0.00024152,2]
[391161449,1760403071117,-2500.0,0.00024164,2]
[391161450,1760403071126,-2500.0,0.00024164,2]
[391161451,1760403071135,-1500.0,0.00024164,2]
[391161452,1760403071144,-2500.0,0.00024164,2]
[391161453,1760403071153,-800.13544049,0.00024164,2]
[391161454,1760403071162,-2500.0,0.00024164,2]
[391161455,1760403071170,-655.13,0.0002418,2]
[391161456,1760403071180,-31584.59,0.000242,7]
[391161457,1760403071191,-151.0,0.000242,7]
[391161458,1760403071200,-151.0,0.000242,7]
[391161459,1760403071209,-363.22351623,0.000242,7]
[391161460,1760403071219,-151.0,0.0002421,7]
[391161461,1760403071228,-151.0,0.0002421,7]
[391161462,1760403071237,-151.0,0.0002421,7]
[391161463,1760403071246,-151.0,0.0002421,7]
[391161464,1760403071256,-151.0,0.0002421,7]
[391161465,1760403071266,-151.0,0.0002421,7]
[391161466,1760403071278,-151.0,0.0002421,7]
[391161467,1760403071287,-151.0,0.0002421,7]
[391161468,1760403071298,-243.120702,0.0002421,7]
[391161469,1760403071307,-151.0,0.000243,6]
[391161470,1760403071316,-151.0,0.000243,10]
[391161471,1760403071327,-4336.0,0.00024323,2]
[391161472,1760403071335,-834.0,0.00024337,2]
[391161473,1760403071344,-700.0,0.00024352,2]
[391161474,1760403071354,-20746.26328358,0.00024364,2]
[391161475,1760403071363,-500.0,0.00024404,2]
[391161476,1760403071372,-834.0,0.00024404,2]
[391161477,1760403071381,-300.0,0.00024444,2]
[391161478,1760403071390,-402.34485587,0.000245,3]
[391161479,1760403071399,-834.0,0.0002452,2]
[391161480,1760403071408,-334.88637281,0.00024573,2]
[391161481,1760403071417,-720.0,0.0002459,20]
[391161482,1760403071427,-151.0,0.000246,8]
[391161483,1760403071436,-151.0,0.000246,7]
[391161484,1760403071445,-151.0,0.000246,7]
[391161485,1760403071454,-272.16645,0.000246,7]
[391161486,1760403071463,-151.0,0.000246,7]
[391161487,1760403071474,-151.0,0.000246,7]
[391161488,1760403071484,-151.0,0.000246,2]
[391161489,1760403071493,-151.0,0.000246,7]
[391161490,1760403071502,-800.0,0.00024608,2]
[391161491,1760403071512,-800.0,0.0002463,2]
[391161492,1760403071521,-800.0,0.00024649,2]
[391161493,1760403071532,-800.0,0.00024657,2]
[391161494,1760403071541,-1500.0,0.00024657,8]
[391161495,1760403071551,-800.0,0.00024672,2]
[391161496,1760403071560,-800.0,0.00024685,2]
[391161497,1760403071569,-800.0,0.00024703,2]
[391161498,1760403071578,-3000.0,0.00024712,2]
[391161499,1760403071587,-1237.83368408,0.00024712,2]
[391161500,1760403071597,-1506.85177544,0.00024712,2]
[391161501,1760403071606,-3000.0,0.00024712,2]
[391161502,1760403071615,-834.0,0.00024717,2]
[391161503,1760403071626,-800.0,0.00024734,2]
[391161504,1760403071635,-800.0,0.00024737,2]
[391161505,1760403071644,-251.93278358,0.00024773,2]
[391161506,1760403071653,-500.0,0.00024773,2]
[391161507,1760403071662,-500.0,0.00024773,2]
[391161508,1760403071671,-500.0,0.00024773,2]
[391161509,1760403071680,-500.0,0.00024773,2]
[391161510,1760403071689,-800.0,0.00024788,2]
[391161511,1760403071698,-800.0,0.00024798,2]
[391161512,1760403071707,-370000.0,0.000248,2]
[391161513,1760403071716,-152.772033,0.000248,7]
[391161514,1760403071726,-151.0,0.000248,7]
[391161515,1760403071734,-151.0,0.000248,7]
[391161516,1760403071743,-151.0,0.000248,7]
[391161517,1760403071753,-151.0,0.000248,7]
[391161518,1760403071762,-151.0,0.000248,7]
[391161519,1760403071771,-151.0,0.000248,7]
[391161520,1760403071779,-151.0,0.000248,7]
[391161521,1760403071788,-151.0,0.000248,7]
[391161522,1760403071797,-151.0,0.000248,7]
[391161523,1760403071807,-185.921877,0.000248,7]
[391161524,1760403071816,-151.0,0.000248,7]
[391161525,1760403071824,-151.0,0.000248,7]
[391161526,1760403071834,-150.0,0.000248,10]
[391161527,1760403071843,-70426.1282854,0.000248,2]
[391161528,1760403071852,-800.0,0.0002481,2]
[391161529,1760403071862,-587.0,0.00024817,2]
[391161530,1760403071872,-800.0,0.00024845,2]
[391161531,1760403071882,-800.0,0.00024859,2]
[391161532,1760403071892,-800.0,0.00024861,2]
[391161533,1760403071902,-501.49849318,0.00024873,2]
[391161534,1760403071912,-500.0,0.00024873,2]
[391161535,1760403071921,-500.67169479,0.00024873,2]
[391161536,1760403071930,-417.71064303,0.00024873,2]
[391161537,1760403071940,-500.6368061,0.00024873,2]
[391161538,1760403071949,-502.61662809,0.00024873,2]
[391161539,1760403071958,-500.0,0.00024873,2]
[391161540,1760403071967,-502.11854094,0.00024873,2]
[391161541,1760403071977,-439.69713099,0.00024873,2]
[391161542,1760403071986,-1758.78852396,0.00024873,2]
[391161543,1760403071994,-428.67043329,0.00024873,2]
[391161544,1760403072003,-1714.68173315,0.00024873,2]
[391161545,1760403072013,-3858.03389958,0.00024873,2]
[391161546,1760403072021,-3953.31690474,0.00024873,2]
[391161547,1760403072031,-6851.86820565,0.00024873,2]
[391161548,1760403072041,-981.0,0.00024878,2]
[391161549,1760403072053,-631.0,0.00024878,2]
[391161550,1760403072062,-2160.0,0.00024878,2]
[391161551,1760403072071,-411.0,0.00024878,2]
[391161552,1760403072080,-416.952,0.00024878,2]
[391161553,1760403072088,-150.0,0.00024878,2]
[391161554,1760403072097,-1877.599523,0.00024882,2]
[391161555,1760403072106,-7633.1984173,0.00024882,2]
[391161556,1760403072115,-200.0,0.00024899,2]
[391161557,1760403072123,-151.0,0.000249,7]
[391161558,1760403072133,-151.0,0.000249,7]
[391161559,1760403072142,-419004.051897,0.000249,2]
[391161560,1760403072150,-3000.0,0.0002491,2]
[391161561,1760403072159,-150.695,0.00024914,2]
[391161562,1760403072168,-3000.0,0.0002492,2]
[391161563,1760403072177,-3000.0,0.0002493,2]
[391161564,1760403072187,-1500.0,0.00024931,8]
[391161565,1760403072195,-207.19,0.00024938,2]
[391161566,1760403072205,-3000.0,0.0002494,2]
[391161567,1760403072214,-3000.0,0.0002495,2]
[391161568,1760403072225,-3613.302269,0.0002496,2]
[391161569,1760403072233,-1093.0,0.00024971,2]
[391161570,1760403072242,-834.0,0.00025001,2]
[391161571,1760403072251,-904.0,0.00025053,2]
[391161572,1760403072260,-160.0,0.00025079,5]
[391161573,1760403072269,-501.34354612,0.00025154,2]
[391161574,1760403072278,-361.32477066,0.00025173,2]
[391161575,1760403072286,-1093.0,0.00025175,2]
[391161576,1760403072296,-834.0,0.00025197,2]
[391161577,1760403072305,-4198.0,0.00025198,2]
[391161578,1760403072314,-1500.0,0.00025205,8]
[391161579,1760403072323,-3500.0,0.0002526,2]
[391161580,1760403072332,-9075.23473808,0.0002528,2]
[391161581,1760403072341,-218.0,0.0002528,2]
[391161582,1760403072350,-160.0,0.00025289,2]
[391161583,1760403072359,-402.34485587,0.00025289,2]
[391161584,1760403072368,-318.93407856,0.00025289,2]
[391161585,1760403072377,-160.0,0.00025289,2]
[391161586,1760403072386,-160.0,0.00025289,2]
[391161587,1760403072395,-160.0,0.00025289,2]
[391161588,1760403072404,-196.24809998,0.000253,2]
[391161589,1760403072413,-162.83936187,0.000253,2]
[391161590,1760403072422,-202.12309487,0.000253,2]
[391161591,1760403072431,-177.90835514,0.000253,2]
[391161592,1760403072440,-172.65316788,0.000253,2]
[391161593,1760403072449,-503.60826244,0.00025321,2]
[391161594,1760403072459,-1000.0,0.00025321,2]
[391161595,1760403072468,-1000.0,0.00025321,2]
[391161596,1760403072478,-1000.0,0.00025321,2]
[391161597,1760403072487,-834.0,0.00025406,2]
[391161598,1760403072497,-408.88053992,0.00025421,2]
[391161599,1760403072506,-500.0,0.00025421,2]
[391161600,1760403072516,-700.0,0.00025448,2]
[391161601,1760403072526,-1500.0,0.00025479,8]
[391161602,1760403072535,-162.83936187,0.000255,2]
[391161603,1760403072544,-202.12309487,0.000255,2]
[391161604,1760403072553,-834.0,0.00025551,2]
[391161605,1760403072562,-160.0,0.0002564,6]
[391161606,1760403072571,-500.0,0.00025689,2]
[391161607,1760403072580,-1000.0,0.00025753,8]
[391161608,1760403072589,-387.76316852,0.00025773,2]
[391161609,1760403072598,-218.0,0.00025783,2]
[391161610,1760403072607,-300.0,0.000258,2]
[391161611,1760403072616,-300.0,0.000258,2]
[391161612,1760403072628,-300.0,0.000258,2]
[391161613,1760403072637,-300.0,0.000258,2]
[391161614,1760403072646,-162.83936187,0.000258,2]
[391161615,1760403072656,-202.12309487,0.000258,2]
[391161616,1760403072667,-4000.0,0.00025808,2]
[391161617,1760403072760,-1500.0,0.00025868,2]
[391161618,1760403072770,-1500.0,0.00025868,2]
[391161619,1760403072780,-1500.0,0.00025868,2]
[391161620,1760403072789,-157.44,0.00025892,2]
[391161621,1760403072799,-31584.59,0.00026,7]
[391161622,1760403072808,-9887.15,0.00026027,2]
[391161623,1760403072817,-162.83936187,0.000261,2]
[391161624,1760403072826,-202.12309487,0.000261,2]